fUST/lending_fUST_20250828
["ID","MTS","AMOUNT","RATE_DAILY","PERIOD"]
[381784509,1756347039121,-480.0,0.00021598,2]
[381784510,1756347039131,-481.03669111,0.00021598,2]
[381784511,1756347039140,-480.0,0.00021598,2]
[381784512,1756347039149,-480.0,0.00021598,2]
[381784513,1756347039160,-480.90412384,0.00021598,2]
[381784514,1756347039170,-480.0,0.00021598,2]
[381784515,1756347039179,-480.0,0.00021598,2]
[381784516,1756347039191,-480.0,0.00021598,2]
[381784517,1756347039200,-480.0,0.00021598,2]
[381784518,1756347039211,-480.0,0.00021598,2]
[381784519,1756347039220,-480.0,0.00021598,2]
[381784520,1756347039230,-612.06,0.00021598,2]
[381784521,1756347039239,-480.0,0.00021598,2]
[381784522,1756347039249,-480.0,0.00021598,2]
[381784523,1756347039260,-480.0,0.00021598,2]
[381784524,1756347039270,-480.0,0.00021598,2]
[381784525,1756347039279,-480.0,0.00021598,2]
[381784526,1756347039288,-480.0,0.00021598,2]
[381784527,1756347039298,-480.0,0.00021598,2]
[381784528,1756347039307,-480.0,0.00021598,2]
[381784530,1756347039316,-480.0,0.00021598,2]
[381784532,1756347039326,-978.47,0.00021598,2]
[381784534,1756347039335,-480.0,0.00021598,2]
[381784536,1756347039345,-480.0,0.00021598,2]
[381784538,1756347039354,-480.0,0.00021598,2]
[381784540,1756347039363,-480.0,0.00021598,2]
[381784542,1756347039373,-1531.21,0.00021598,2]
[381784544,1756347039383,-480.0,0.00021598,2]
[381784546,1756347039392,-450.79996798,0.00021598,2]
[381784548,1756347039401,-776.11,0.00021598,2]
[381784550,1756347039411,-480.0,0.00021598,2]
[381784552,1756347039420,-480.0,0.00021598,2]
[381784554,1756347039431,-190.52068735,0.00021598,2]
[381784556,1756347039440,-480.0,0.00021598,2]
[381784558,1756347039450,-480.0,0.00021598,2]
[381784560,1756347039460,-480.0,0.00021598,2]
[381784562,1756347039470,-480.0,0.00021598,2]
[381784564,1756347039479,-480.0,0.00021598,2]
[381784566,1756347039489,-480.0,0.00021598,2]
[381784568,1756347039498,-269.41665767,0.00021598,2]
[381784570,1756347039507,-480.0,0.00021598,2]
[381784572,1756347039518,-480.0,0.00021598,2]
[381784574,1756347039527,-480.0,0.00021598,2]
[381784576,1756347039537,-480.0,0.00021598,2]
[381784578,1756347039546,-480.0,0.00021598,2]
[381784580,1756347039556,-535.62,0.00021598,2]
[381784582,1756347039565,-480.0,0.00021598,2]
[381784584,1756347039576,-480.0,0.00021598,2]
[381784586,1756347039585,-481.1987029,0.00021598,2]
[381784588,1756347039595,-480.0,0.00021598,2]
[381784590,1756347039605,-367.40913796,0.00021598,2]
[381784592,1756347039615,-480.0,0.00021598,2]
[381784594,1756347039625,-480.0,0.00021598,2]
[381784596,1756347039635,-480.0,0.00021598,2]
[381784598,1756347039644,-480.0,0.00021598,2]
[381784600,1756347039653,-480.0,0.00021598,2]
[381784602,1756347039663,-480.0,0.00021598,2]
[381784604,1756347039673,-480.0,0.00021598,2]
[381784606,1756347039682,-480.86461467,0.00021598,2]
[381784608,1756347039692,-480.0,0.00021598,2]
[381784610,1756347039701,-480.0,0.00021598,2]
[381784612,1756347039712,-480.0,0.00021598,2]
[381784614,1756347039722,-480.0,0.00021598,2]
[381784616,1756347039732,-500.0,0.00021598,2]
[381784618,1756347039742,-633.43,0.00021598,2]
[381784620,1756347039751,-480.0,0.00021598,2]
[381784622,1756347039761,-164.59595102,0.00021598,2]
[381784624,1756347039770,-481.10306388,0.00021598,2]
[381784626,1756347039780,-480.0,0.00021598,2]
[381784628,1756347039789,-480.0,0.00021598,2]
[381784630,1756347039799,-619.02,0.00021598,2]
[381784632,1756347039809,-480.0,0.00021598,2]
[381784634,1756347039819,-645.23,0.00021598,2]
[381784636,1756347039828,-480.0,0.00021598,2]
[381784638,1756347039838,-480.0,0.00021598,2]
[381784640,1756347039848,-480.0,0.00021598,2]
[381784643,1756347039859,-480.0,0.00021598,2]
[381784645,1756347039868,-384.29419228,0.00021598,2]
[381784646,1756347039877,-480.0,0.00021598,2]
[381784649,1756347039887,-480.0,0.00021598,2]
[381784651,1756347039896,-480.0,0.00021598,2]
[381784653,1756347039906,-616.26136832,0.00021598,2]
[381784655,1756347039916,-500.0,0.00021598,2]
[381784657,1756347039925,-500.0,0.00021598,2]
[381784659,1756347039936,-480.0,0.00021598,2]
[381784661,1756347039945,-480.0,0.00021598,2]
[381784663,1756347039954,-746.86,0.00021598,2]
[381784665,1756347039964,-480.0,0.00021598,2]
[381784667,1756347039974,-480.0,0.00021598,2]
[381784669,1756347039983,-1149.46,0.00021598,2]
[381784671,1756347039992,-480.0,0.00021598,2]
[381784673,1756347040002,-480.0,0.00021598,2]
[381784675,1756347040011,-480.0,0.00021598,2]
[381784677,1756347040021,-480.0,0.00021598,2]
[381784679,1756347040030,-151.0,0.00021598,2]
[381784681,1756347040039,-151.0,0.00021598,2]
[381784683,1756347040049,-480.0,0.00021598,2]
[381784685,1756347040059,-151.0,0.00021598,2]
[381784687,1756347040069,-151.0,0.00021598,2]
[381784689,1756347040079,-159.066194,0.00021598,2]
[381784691,1756347040088,-480.0,0.00021598,2]
[381784693,1756347040097,-152.256969,0.00021598,2]
[381784695,1756347040106,-247.331902,0.00021598,2]
[381784697,1756347040119,-661.32,0.00021598,2]
[381784699,1756347040128,-480.0,0.00021598,2]
[381784701,1756347040137,-481.6074401,0.00021598,2]
[381784703,1756347040146,-480.0,0.00021598,2]
[381784704,1756347040158,-480.0,0.00021598,2]
[381784706,1756347040167,-480.0,0.00021598,2]
[381784708,1756347040177,-1159.12,0.00021598,2]
[381784710,1756347040189,-480.0,0.00021598,2]
[381784712,1756347040198,-506.63,0.00021598,2]
[381784739,1756347040439,-1572.61,0.00021598,2]
[381784741,1756347040449,-480.0,0.00021598,2]
[381784743,1756347040459,-480.0,0.00021598,2]
[381784745,1756347040469,-480.0,0.00021598,2]
[381784747,1756347040478,-482.24072435,0.00021598,2]
[381784749,1756347040488,-480.0,0.00021598,2]
[381784751,1756347040497,-992.58,0.00021598,2]
[381784753,1756347040506,-481.15406375,0.00021598,2]
[381784755,1756347040515,-480.0,0.00021598,2]
[381784757,1756347040525,-500.0,0.00021598,2]
[381784759,1756347040534,-500.0,0.00021598,2]
[381784761,1756347040543,-233.77251825,0.00021598,2]
[381784763,1756347040552,-480.0,0.00021598,2]
[381784765,1756347040561,-480.0,0.00021598,2]
[381784767,1756347040571,-480.0,0.00021598,2]
[381784769,1756347040580,-480.0,0.00021598,2]
[381784771,1756347040590,-506.03267917,0.00021598,2]
[381784772,1756347040599,-480.0,0.00021598,2]
[381784774,1756347040609,-848.77,0.00021598,2]
[381784777,1756347040619,-480.0,0.00021598,2]
[381784779,1756347040630,-480.0,0.00021598,2]
[381784780,1756347040640,-481.10330806,0.00021598,2]
[381784783,1756347040651,-484.86129962,0.00021598,2]
[381784785,1756347040661,-480.0,0.00021598,2]
[381784787,1756347040671,-480.0,0.00021598,2]
[381784789,1756347040680,-480.0,0.00021598,2]
[381784791,1756347040691,-480.0,0.00021598,2]
[381784792,1756347040700,-480.0,0.00021598,2]
[381784795,1756347040714,-480.0,0.00021598,2]
[381784797,1756347040723,-480.0,0.00021598,2]
[381784798,1756347040733,-480.0,0.00021598,2]
[381784800,1756347040743,-480.0,0.00021598,2]
[381784802,1756347040752,-480.0,0.00021598,2]
[381784804,1756347040761,-480.0,0.00021598,2]
[381784806,1756347040771,-780.49,0.00021598,2]
[381784808,1756347040780,-480.0,0.00021598,2]
[381784810,1756347040789,-410.94721335,0.00021598,2]
[381784812,1756347040799,-480.0,0.00021598,2]
[381784814,1756347040808,-1732.55,0.00021598,2]
[381784816,1756347040818,-480.0,0.00021598,2]
[381784818,1756347040827,-480.0,0.00021598,2]
[381784820,1756347040836,-482.09952327,0.00021598,2]
[381784822,1756347040845,-480.47443382,0.00021598,2]
[381784824,1756347040855,-480.0,0.00021598,2]
[381784826,1756347040864,-1527.27,0.00021598,2]
[381784828,1756347040873,-502.06,0.00021598,2]
[381784830,1756347040882,-961.14,0.00021598,2]
[381784832,1756347040892,-480.0,0.00021598,2]
[381784834,1756347040901,-480.0,0.00021598,2]
[381784836,1756347040911,-480.0,0.00021598,2]
[381784838,1756347040920,-480.0,0.00021598,2]
[381784840,1756347040930,-480.0,0.00021598,2]
[381784842,1756347040939,-480.0,0.00021598,2]
[381784844,1756347040948,-480.0,0.00021598,2]
[381784846,1756347040960,-480.0,0.00021598,2]
[381784848,1756347040970,-480.0,0.00021598,2]
[381784850,1756347040979,-628.3,0.00021598,2]
[381784852,1756347040988,-469.29085849,0.00021598,2]
[381784854,1756347040998,-480.0,0.00021598,2]
[381784856,1756347041007,-480.0,0.00021598,2]
[381784858,1756347041017,-480.0,0.00021598,2]
[381784860,1756347041028,-480.0,0.00021598,2]
[381784862,1756347041038,-480.0,0.00021598,2]
[381784864,1756347041047,-480.0,0.00021598,2]
[381784866,1756347041056,-480.0,0.00021598,2]
[381784868,1756347041066,-731.73,0.00021598,2]
[381784870,1756347041075,-480.0,0.00021598,2]
[381784872,1756347041084,-480.0,0.00021598,2]
[381784874,1756347041094,-480.0,0.00021598,2]
[381784876,1756347041103,-480.0,0.00021598,2]
[381784878,1756347041113,-480.0,0.00021598,2]
[381784880,1756347041124,-480.0,0.00021598,2]
[381784882,1756347041134,-480.0,0.00021598,2]
[381784884,1756347041144,-480.0,0.00021598,2]
[381784886,1756347041153,-480.0,0.00021598,2]
[381784888,1756347041162,-480.0,0.00021598,2]
[381784890,1756347041171,-1152.25,0.00021598,2]
[381784892,1756347041181,-480.0,0.00021598,2]
[381784894,1756347041190,-480.0,0.00021598,2]
[381784896,1756347041201,-480.0,0.00021598,2]
[381784898,1756347041213,-168.46396933,0.00021598,2]
[381784900,1756347041222,-480.0,0.00021598,2]
[381784901,1756347041231,-599.15,0.00021598,2]
[381784903,1756347041241,-480.0,0.00021598,2]
[381784905,1756347041250,-847.7,0.00021598,2]
[381784907,1756347041260,-1134.3,0.00021598,2]
[381784909,1756347041270,-1104.37,0.00021598,2]
[381784911,1756347041279,-1193.18,0.00021598,2]
[381784913,1756347041288,-480.0,0.00021598,2]
[381784915,1756347041297,-739.88,0.00021598,2]
[381784917,1756347041306,-480.0,0.00021598,2]
[381784919,1756347041316,-167.436478,0.00021598,2]
[381784921,1756347041325,-480.0,0.00021598,2]
[381784923,1756347041337,-480.0,0.00021598,2]
[381784925,1756347041350,-480.0,0.00021598,2]
[381784927,1756347041360,-480.0,0.00021598,2]
[381784929,1756347041370,-700.15,0.00021598,2]
[381784931,1756347041379,-480.0,0.00021598,2]
[381784933,1756347041388,-480.0,0.00021598,2]
[381784935,1756347041398,-480.0,0.00021598,2]
[381784937,1756347041407,-480.0,0.00021598,2]
[381784939,1756347041416,-480.0,0.00021598,2]
[381784941,1756347041425,-480.0,0.00021598,2]
[381784943,1756347041435,-480.0,0.00021598,2]
[381784945,1756347041444,-607.78,0.00021598,2]
[381784947,1756347041453,-480.0,0.00021598,2]
[381784949,1756347041463,-151.0,0.00021598,2]
[381784951,1756347041473,-480.0,0.00021598,2]
[381784953,1756347041482,-151.0,0.00021598,2]
[381784955,1756347041492,-480.0,0.00021598,2]
[381784957,1756347041501,-661.88,0.00021598,2]
[381784959,1756347041512,-1486.1,0.00021598,2]
[381784961,1756347041521,-480.0,0.00021598,2]
[381784963,1756347041530,-480.0,0.00021598,2]
[381784965,1756347041539,-481.16531053,0.00021598,2]
[381784967,1756347041549,-494.04,0.00021598,2]
[381784969,1756347041558,-480.0,0.00021598,2]
[381784971,1756347041567,-480.0,0.00021598,2]
[381784973,1756347041577,-480.0,0.00021598,2]
[381784975,1756347041586,-480.0,0.00021598,2]
[381784977,1756347041595,-480.0,0.00021598,2]
[381784979,1756347041606,-481.28213561,0.00021598,2]
[381784982,1756347041618,-480.0,0.00021598,2]
[381784983,1756347041627,-480.0,0.00021598,2]
[381784985,1756347041636,-480.0,0.00021598,2]
[381784987,1756347041645,-538.49,0.00021598,2]
[381784989,1756347041654,-679.85,0.00021598,2]
[381784991,1756347041664,-480.0,0.00021598,2]
[381784992,1756347041673,-480.0,0.00021598,2]
[381784993,1756347041682,-480.0,0.00021598,2]
[381784994,1756347041691,-151.0,0.00021598,2]
[381784995,1756347041700,-151.0,0.00021598,2]
[381784996,1756347041710,-181.008421,0.00021598,2]
[381784997,1756347041719,-1405.58,0.00021598,2]
[381784999,1756347041728,-480.0,0.00021598,2]
[381785000,1756347041737,-480.0,0.00021598,2]
[381785003,1756347041746,-480.0,0.00021598,2]
[381785005,1756347041755,-480.0,0.00021598,2]
[381785007,1756347041765,-657.15,0.00021598,2]
[381785009,1756347041774,-480.0,0.00021598,2]
[381785011,1756347041783,-480.0,0.00021598,2]
[381785013,1756347041792,-480.0,0.00021598,2]
[381785015,1756347041801,-480.0,0.00021598,2]
[381785016,1756347041810,-480.0,0.00021598,2]
[381785018,1756347041820,-480.0,0.00021598,2]
[381785021,1756347041829,-480.0,0.00021598,2]
[381785023,1756347041839,-489.87766863,0.00021598,2]
[381785025,1756347041848,-480.0,0.00021598,2]
[381785027,1756347041857,-480.0,0.00021598,2]
[381785029,1756347041867,-480.0,0.00021598,2]
[381785031,1756347041876,-480.0,0.00021598,2]
[381785033,1756347041885,-480.0,0.00021598,2]
[381785035,1756347041895,-480.0,0.00021598,2]
[381785037,1756347041904,-907.2,0.00021598,2]
[381785039,1756347041913,-480.0,0.00021598,2]
[381785041,1756347041922,-480.0,0.00021598,2]
[381785043,1756347041933,-480.0,0.00021598,2]
[381785045,1756347041942,-500.0,0.00021598,2]
[381785047,1756347041951,-500.54778955,0.00021598,2]
[381785049,1756347041962,-480.92830623,0.00021598,2]
[381785051,1756347041971,-205.68606787,0.00021598,2]
[381785053,1756347041981,-480.0,0.00021598,2]
[381785055,1756347041990,-480.0,0.00021598,2]
[381785057,1756347042000,-480.0,0.00021598,2]
[381785059,1756347042010,-480.0,0.00021598,2]
[381785061,1756347042020,-3664.61,0.00021598,2]
[381785063,1756347042029,-480.0,0.00021598,2]
[381785065,1756347042038,-480.0,0.00021598,2]
[381785067,1756347042048,-480.0,0.00021598,2]
[381785069,1756347042058,-480.0,0.00021598,2]
[381785071,1756347042067,-480.0,0.00021598,2]
[381785073,1756347042076,-480.0,0.00021598,2]
[381785075,1756347042086,-480.0,0.00021598,2]
[381785078,1756347042096,-1184.14,0.00021598,2]
[381785080,1756347042106,-3749.85,0.00021598,2]
[381785082,1756347042119,-480.0,0.00021598,2]
[381785084,1756347042128,-480.0,0.00021598,2]
[381785086,1756347042138,-480.0,0.00021598,2]
[381785088,1756347042147,-480.0,0.00021598,2]
[381785090,1756347042158,-481.82642187,0.00021598,2]
[381785092,1756347042167,-151.0,0.00021598,2]
[381785094,1756347042177,-480.0,0.00021598,2]
[381785096,1756347042189,-151.0,0.00021598,2]
[381785098,1756347042198,-151.0,0.00021598,2]
[381785100,1756347042207,-371.58743751,0.00021598,2]
[381785102,1756347042216,-151.0,0.00021598,2]
[381785104,1756347042227,-480.0,0.00021598,2]
[381785106,1756347042236,-480.0,0.00021598,2]
[381785108,1756347042246,-480.0,0.00021598,2]
[381785110,1756347042256,-480.0,0.00021598,2]
[381785112,1756347042266,-480.80054676,0.00021598,2]
[381785114,1756347042275,-480.0,0.00021598,2]
[381785116,1756347042285,-480.0,0.00021598,2]
[381785118,1756347042294,-480.0,0.00021598,2]
[381785120,1756347042303,-480.0,0.00021598,2]
[381785122,1756347042312,-480.0,0.00021598,2]
[381785124,1756347042321,-2015.15,0.00021598,2]
[381785126,1756347042331,-480.0,0.00021598,2]
[381785128,1756347042340,-480.0,0.00021598,2]
[381785130,1756347042352,-480.0,0.00021598,2]
[381785132,1756347042369,-480.0,0.00021598,2]
[381785134,1756347042379,-481.45314978,0.00021598,2]
[381785136,1756347042388,-547.69,0.00021598,2]
[381785138,1756347042397,-480.0,0.00021598,2]
[381785140,1756347042406,-480.0,0.00021598,2]
[381785142,1756347042421,-480.0,0.00021599,2]
[381785144,1756347042435,-536.1,0.00021599,2]
[381785146,1756347042443,-480.0,0.00021599,2]
[381785148,1756347042453,-480.0,0.00021599,2]
[381785150,1756347042462,-518.93,0.00021599,2]
[381785152,1756347042472,-553.42,0.00021599,2]
[381785154,1756347042482,-480.0,0.00021599,2]
[381785156,1756347042491,-480.0,0.00021599,2]
[381785158,1756347042500,-512.24,0.00021599,2]
[381785160,1756347042515,-480.0,0.00021599,2]
[381785162,1756347042534,-853.43,0.00021599,2]
[381785164,1756347042552,-480.0,0.00021599,2]
[381785166,1756347042568,-480.0,0.00021599,2]
[381785168,1756347042578,-480.0,0.00021599,2]
[381785170,1756347042589,-527.67,0.00021599,2]
[381785172,1756347042600,-480.0,0.00021599,2]
[381785174,1756347042610,-480.0,0.00021599,2]
[381785176,1756347042619,-480.0,0.00021599,2]
[381785178,1756347042628,-480.0,0.00021599,2]
[381785180,1756347042638,-480.0,0.00021599,2]
[381785182,1756347042653,-480.0,0.00021599,2]
[381785185,1756347042666,-480.0,0.00021599,2]
[381785187,1756347042679,-480.0,0.00021599,2]
[381785190,1756347042692,-480.0,0.00021599,2]
[381785192,1756347042704,-480.0,0.00021599,2]
[381785194,1756347042714,-480.0,0.00021599,2]
[381785197,1756347042725,-480.0,0.00021599,2]
[381785199,1756347042738,-480.0,0.00021599,2]
[381785201,1756347042750,-480.0,0.00021599,2]
[381785204,1756347042761,-625.56,0.00021599,2]
[381785207,1756347042786,-480.0,0.00021599,2]
[381785210,1756347042801,-480.0,0.00021599,2]
[381785213,1756347042816,-480.0,0.00021599,2]
[381785215,1756347042829,-619.49,0.00021599,2]
[381785218,1756347042843,-787.19,0.00021599,2]
[381785220,1756347042857,-480.0,0.00021599,2]
[381785223,1756347042870,-480.0,0.00021599,2]
[381785225,1756347042882,-480.0,0.00021599,2]
[381785227,1756347042894,-480.0,0.00021599,2]
[381785230,1756347042912,-425.59824437,0.00021599,2]
[381785232,1756347042928,-480.0,0.00021599,2]
[381785235,1756347042942,-503.44223772,0.00021599,2]
[381785237,1756347042956,-480.0,0.00021599,2]
[381785240,1756347042969,-161.1421334,0.000216,2]
[381785242,1756347042983,-153.0,0.000216,2]
[381785245,1756347042996,-153.0,0.000216,2]
[381785247,1756347043007,-153.0,0.000216,2]
[381785249,1756347043017,-306.0,0.000216,2]
[381785251,1756347043031,-3622.56406397,0.00021629,2]
[381785254,1756347043042,-506.42664195,0.00021673,2]
[381785256,1756347043054,-500.0,0.00021673,2]
[381785258,1756347043067,-500.0,0.00021673,2]
[381785261,1756347043079,-500.0,0.00021673,2]
[381785263,1756347043091,-500.0,0.00021673,2]
[381785266,1756347043104,-500.0,0.00021673,2]
[381785268,1756347043122,-1000.0,0.00021678,2]
[381785270,1756347043135,-153.08816727,0.00021678,2]
[381785273,1756347043149,-1000.0,0.00021678,2]
[381785275,1756347043164,-1000.0,0.00021678,2]
[381785278,1756347043176,-1000.0,0.00021678,2]
[381785280,1756347043186,-1000.0,0.00021678,2]
[381785282,1756347043198,-1000.0,0.00021678,2]
[381785284,1756347043208,-1000.0,0.00021678,2]
[381785286,1756347043219,-1000.0,0.00021678,2]
[381785289,1756347043231,-151.0,0.00021678,2]
[381785291,1756347043245,-1000.0,0.00021678,2]
[381785293,1756347043257,-151.0,0.00021678,2]
[381785296,1756347043269,-1000.0,0.00021678,2]
[381785298,1756347043280,-151.0,0.00021678,2]
[381785300,1756347043291,-1000.0,0.00021678,2]
[381785302,1756347043305,-151.0,0.00021678,2]
[381785304,1756347043317,-151.0,0.00021678,2]
[381785307,1756347043331,-1000.0,0.00021678,2]
[381785309,1756347043343,-151.0,0.00021678,2]
[381785311,1756347043354,-1000.0,0.00021678,2]
[381785313,1756347043364,-1000.0,0.00021678,2]
[381785315,1756347043375,-194.72792766,0.00021678,2]
[381785318,1756347043386,-151.0,0.00021678,2]
[381785320,1756347043396,-1000.0,0.00021678,2]
[381785322,1756347043407,-151.0,0.00021678,2]
[381785324,1756347043418,-1000.0,0.00021678,2]
[381785326,1756347043430,-151.0,0.00021678,2]
[381785329,1756347043441,-1000.0,0.00021678,2]
[381785331,1756347043452,-151.0,0.00021678,2]
[381785333,1756347043465,-1000.0,0.00021678,2]
[381785335,1756347043477,-151.0,0.00021678,2]
[381785338,1756347043489,-1000.0,0.00021678,2]
[381785340,1756347043501,-151.0,0.00021678,2]
[381785342,1756347043512,-1000.0,0.00021678,2]
[381785345,1756347043523,-155.39854786,0.00021678,2]
[381785347,1756347043535,-500.0,0.00021687,2]
[381785349,1756347043548,-500.0,0.00021687,2]
[381785351,1756347043559,-480.0,0.00021688,2]
[381785354,1756347043571,-480.0,0.00021688,2]
[381785356,1756347043582,-1085.08,0.00021688,2]
[381785358,1756347043594,-480.28641696,0.00021688,2]
[381785360,1756347043605,-4571.86,0.00021688,2]
[381785363,1756347043617,-480.0,0.00021688,2]
[381785365,1756347043628,-1865.83,0.00021688,2]
[381785367,1756347043644,-610.28,0.00021688,2]
[381785370,1756347043655,-4653.64,0.00021688,2]
[381785372,1756347043666,-480.0,0.00021688,2]
[381785374,1756347043677,-578.79,0.00021688,2]
[381785376,1756347043688,-1541.84,0.00021688,2]
[381785379,1756347043699,-500.0,0.00021689,2]
[381785381,1756347043710,-508.03843825,0.00021689,2]
[381785383,1756347043720,-500.0,0.00021689,2]
[381785385,1756347043732,-480.0,0.0002169,2]
[381785387,1756347043743,-480.0,0.0002169,2]
[381785389,1756347043754,-487.05,0.0002169,2]
[381785392,1756347043766,-151.0,0.0002169,2]
[381785394,1756347043776,-151.0,0.0002169,2]
[381785396,1756347043787,-151.0,0.0002169,2]
[381785398,1756347043798,-564.56,0.0002169,2]
[381785401,1756347043809,-637.5,0.0002169,2]
[381785403,1756347043821,-822.48,0.0002169,2]
[381785405,1756347043832,-600.13,0.0002169,2]
[381785407,1756347043843,-480.0,0.0002169,2]
[381785409,1756347043854,-480.0,0.0002169,2]
[381785412,1756347043865,-1018.3,0.0002169,2]
[381785414,1756347043876,-713.83,0.0002169,2]
[381785416,1756347043887,-480.0,0.0002169,2]
[381785418,1756347043898,-782.95,0.0002169,2]
[381785420,1756347043908,-494.98,0.0002169,2]
[381785423,1756347043919,-480.0,0.0002169,2]
[381785425,1756347043931,-480.0,0.0002169,2]
[381785427,1756347043942,-480.0,0.0002169,2]
[381785429,1756347043953,-480.0,0.0002169,2]
[381785431,1756347043966,-480.0,0.0002169,2]
[381785434,1756347043978,-1281.9,0.0002169,2]
[381785436,1756347043989,-723.62,0.0002169,2]
[381785438,1756347044000,-480.0,0.0002169,2]
[381785440,1756347044012,-1231.5,0.0002169,2]
[381785442,1756347044023,-480.0,0.0002169,2]
[381785445,1756347044034,-621.81,0.0002169,2]
[381785447,1756347044045,-480.0,0.0002169,2]
[381785449,1756347044056,-1264.29,0.0002169,2]
[381785451,1756347044069,-480.0,0.0002169,2]
[381785453,1756347044080,-561.65,0.0002169,2]
[381785455,1756347044091,-690.1,0.0002169,2]
[381785458,1756347044102,-480.0,0.0002169,2]
[381785460,1756347044115,-480.0,0.0002169,2]
[381785462,1756347044126,-480.0,0.0002169,2]
[381785464,1756347044137,-480.78,0.0002169,2]
[381785466,1756347044148,-510.04,0.0002169,2]
[381785468,1756347044159,-480.0,0.0002169,2]
[381785470,1756347044170,-584.9,0.0002169,2]
[381785473,1756347044182,-480.0,0.0002169,2]
[381785475,1756347044201,-480.0,0.0002169,2]
[381785478,1756347044213,-480.0,0.0002169,2]
[381785480,1756347044224,-612.72,0.0002169,2]
[381785482,1756347044234,-492.2,0.0002169,2]
[381785484,1756347044245,-480.0,0.0002169,2]
[381785486,1756347044256,-480.0,0.0002169,2]
[381785489,1756347044267,-508.55,0.0002169,2]
[381785491,1756347044280,-480.0,0.0002169,2]
[381785493,1756347044291,-481.16718497,0.00021691,2]
[381785495,1756347044301,-836.67,0.00021691,2]
[381785497,1756347044312,-480.0,0.00021691,2]
[381785500,1756347044324,-480.0,0.00021691,2]
[381785502,1756347044335,-319.92826557,0.00021691,2]
[381785504,1756347044346,-480.0,0.00021691,2]
[381785506,1756347044356,-480.0,0.00021691,2]
[381785508,1756347044367,-480.0,0.00021691,2]
[381785511,1756347044378,-480.0,0.00021691,2]
[381785513,1756347044389,-578.49,0.00021691,2]
[381785515,1756347044399,-480.0,0.00021691,2]
[381785517,1756347044410,-480.0,0.00021691,2]
[381785519,1756347044421,-480.0,0.00021691,2]
[381785521,1756347044432,-480.0,0.00021691,2]
[381785524,1756347044443,-480.0,0.00021691,2]
[381785526,1756347044454,-480.0,0.00021691,2]
[381785528,1756347044467,-480.0,0.00021691,2]
[381785530,1756347044477,-481.67283595,0.00021691,2]
[381785532,1756347044489,-480.0,0.00021691,2]
[381785535,1756347044500,-480.0,0.00021691,2]
[381785537,1756347044511,-481.49097541,0.00021691,2]
[381785539,1756347044522,-480.0,0.00021691,2]
[381785541,1756347044532,-480.0,0.00021691,2]
[381785543,1756347044543,-480.0,0.00021691,2]
[381785545,1756347044554,-480.0,0.00021691,2]
[381785548,1756347044565,-480.0,0.00021691,2]
[381785550,1756347044576,-791.25,0.00021691,2]